bitfinex/quotes_ETHUSD_20240715
["timestamp","ask_amount","ask_price","bid_price","bid_amount"]
[1721008481771,1.05440415,3285.4,3284.8,2.73987]
[1721008482868,1.42623295,3285.4,3284.8,2.73987]
[1721008483070,1.05440415,3285.3,3284.6,2.74003]
[1721008483392,1.05440415,3285.3,3284.7,5.73996]
[1721008484608,1.05452293,3285.2,3284.7,5.73996]
[1721008484899,1.05452293,3285.1,3284.7,5.73996]
[1721008485101,1.05452293,3285.3,3284.7,5.73996]
[1721008485281,1.05452293,3285.2,3284.7,5.73996]
[1721008485483,1.05452293,3285.3,3284.7,5.73996]
[1721008486309,1.05452293,3285.3,3284.6,2.74003]
[1721008486310,0.47780445,3285.2,3284.6,2.74003]
[1721008486471,1.05452293,3285.1,3284.6,2.74003]
[1721008488021,1.05454297,3285.0,3284.6,2.74003]
[1721008488174,0.47780445,3285.2,3284.6,2.74003]
[1721008488375,1.05456247,3285.1,3284.6,2.74003]
[1721008488600,1.05456247,3285.0,3284.5,2.74014]
[1721008488796,1.05456247,3284.9,3284.5,2.74014]
[1721008489119,1.05456431,3284.8,3284.5,2.74014]
[1721008489270,0.47780445,3285.2,3284.6,2.74005]
[1721008489472,1.05451638,3285.1,3284.6,2.74005]
[1721008489716,1.05451638,3285.0,3284.6,2.74005]
[1721008489882,1.05451638,3285.1,3284.6,2.74005]
[1721008490610,1.0545364,3285.0,3284.6,2.74005]
[1721008490812,1.0545364,3284.9,3284.6,2.74005]
[1721008491011,0.47780445,3285.2,3284.6,2.74005]
[1721008491224,0.47780445,3285.2,3284.5,2.74014]
[1721008491225,1.0545336,3285.1,3284.7,2.73997]
[1721008491388,0.47780445,3285.2,3284.7,2.73997]
[1721008491588,1.05450104,3285.1,3284.7,2.73997]
[1721008494683,1.05452371,3285.0,3284.7,2.73997]
[1721008495020,1.05452371,3284.9,3284.7,2.73997]
[1721008495179,1.05452371,3285.1,3284.7,2.73997]
[1721008497880,0.47780445,3285.2,3284.7,2.73997]
[1721008498083,1.05455456,3285.1,3284.7,2.73997]
[1721008498286,1.05455456,3285.0,3284.7,2.73997]
[1721008498502,1.05455456,3284.9,3284.5,2.74014]
[1721008498708,1.05455456,3285.1,3284.6,2.74005]
[1721008500188,1.20779046,3285.1,3284.4,3.81022]
[1721008500530,1.07,3284.7,3284.1,7.43]
[1721008500837,2.73989,3284.8,3283.6,2.74089]
[1721008500838,2.3204,3284.4,3283.6,2.74089]
[1721008500986,1.05483409,3284.3,3283.6,2.74089]
[1721008501185,1.05483409,3284.2,3283.7,1.07]
[1721008501387,1.05483409,3284.1,3283.9,1.07]
[1721008501614,1.05483409,3284.0,3283.9,1.07]
[1721008501823,1.05483409,3284.0,3283.9,8.95498]
[1721008502118,0.31892712,3285.0,3284.2,2.74035]
[1721008502321,1.05465722,3284.9,3284.2,2.74035]
[1721008502541,1.05465722,3284.8,3284.2,2.74035]
[1721008502748,1.05465722,3284.9,3284.2,2.74035]
[1721008502923,1.05465722,3284.8,3284.2,2.74035]
[1721008503755,1.05467135,3284.7,3284.2,2.74035]
[1721008504045,0.31892712,3285.0,3284.2,2.74035]
[1721008504046,1.05467135,3284.6,3284.2,2.74035]
[1721008504225,1.05467135,3284.5,3284.2,2.74035]
[1721008504425,1.05467135,3284.9,3284.2,2.74035]
[1721008505040,1.91329199,3284.9,3284.2,2.74035]
[1721008505212,1.05467135,3284.8,3284.2,2.74035]
[1721008505821,1.05467135,3284.8,3284.4,2.74021]
[1721008506023,1.05467135,3284.9,3284.4,2.74021]
[1721008506217,1.05467135,3284.8,3284.6,2.74004]
[1721008506440,1.05467135,3284.7,3284.6,2.74004]
[1721008506839,0.31892712,3285.0,3284.6,2.74004]
[1721008507046,1.05456307,3284.7,3284.6,2.74004]
[1721008507350,1.05455982,3284.7,3284.6,2.74004]
[1721008508558,1.05455982,3284.7,3284.1,2.7404]
[1721008508718,1.05455982,3284.6,3284.1,2.7404]
[1721008508920,1.13067458,3284.8,3283.9,2.74061]
[1721008509258,5.23404,3284.9,3284.0,5.74056]
[1721008509259,1.69103128,3284.7,3284.0,5.74056]
[1721008509465,1.05455982,3284.6,3284.0,5.74056]
[1721008509674,1.05455982,3284.6,3284.0,3.0]
[1721008509997,1.05455982,3284.6,3283.9,3.0]
[1721008510165,2.81626171,3284.5,3283.7,7.43]
[1721008510460,3.87115741,3284.4,3283.5,2.74091]
[1721008510759,1.05479755,3284.3,3283.6,2.74087]
[1721008511053,1.05479755,3284.2,3283.7,2.74074]
[1721008511356,1.05479755,3284.1,3283.7,2.74074]
[1721008511532,1.05479755,3284.5,3283.7,2.74074]
[1721008513454,1.05485501,3284.4,3283.7,2.74074]
[1721008513797,1.054855,3284.3,3283.7,3.288909]
[1721008513948,2.54566581,3285.0,3284.4,2.74022]
[1721008513949,1.054855,3284.5,3284.4,2.74022]
[1721008514118,1.054855,3284.5,3284.0,5.30954]
[1721008514318,0.31892712,3285.0,3284.0,5.30954]
[1721008514319,1.0546236,3284.4,3284.0,2.74054]
[1721008514564,3.05865712,3285.0,3284.1,2.74046]
[1721008514766,1.05468235,3284.9,3284.1,2.74046]
[1721008514915,1.05468235,3284.8,3284.1,2.74046]
[1721008515121,1.05468235,3284.9,3284.1,2.74046]
[1721008515553,1.4660163,3284.9,3283.8,15.6549]
[1721008515755,1.05468235,3284.8,3284.0,2.74054]
[1721008516662,4.99436,3284.6,3283.8,7.43]
[1721008516869,1.05478819,3284.5,3283.8,7.43]
[1721008517041,1.05478819,3284.4,3283.8,7.43]
[1721008517229,1.05478819,3284.3,3283.8,7.43]
[1721008517422,1.05478819,3284.5,3283.8,7.43]
[1721008517622,1.05478819,3284.4,3283.7,2.7408]
[1721008518331,1.05478819,3284.4,3283.5,2.74095]
[1721008518634,0.07612604,3284.3,3283.4,10.43]
[1721008518858,1.05478819,3284.2,3283.5,3.0]
[1721008519055,0.07613207,3284.1,3283.5,3.0]
[1721008519256,1.05478819,3284.0,3283.5,3.0]
[1721008519756,0.07613369,3283.9,3283.5,3.0]
[1721008519960,1.05488802,3283.8,3283.5,3.0]
[1721008520269,0.07613369,3284.2,3283.5,3.0]
[1721008520443,1.33654096,3284.1,3283.5,3.0]
[1721008520643,1.13102927,3284.0,3283.5,3.0]
[1721008520856,1.05489559,3283.9,3283.5,3.0]
[1721008521384,0.07613367,3283.8,3283.4,7.43]
[1721008521546,1.05489559,3283.7,3283.4,7.43]
[1721008521741,0.07613971,3283.6,3282.9,19.59]
[1721008522093,1.05489559,3283.5,3282.9,19.59]
[1721008522374,1.05489559,3283.5,3283.0,2.74139]
[1721008522583,1.05489559,3283.8,3283.0,2.74139]
[1721008522823,1.05489559,3283.7,3283.0,2.74139]
[1721008523109,0.07614479,3283.9,3283.0,2.74139]
[1721008523308,1.05501149,3283.6,3283.4,2.74104]
[1721008523619,5.07551,3284.3,3283.4,2.74104]
[1721008523781,1.05486439,3284.2,3283.5,0.274104]
[1721008524111,1.05486439,3284.1,3283.4,2.74104]
[1721008524273,1.05486439,3284.0,3283.4,2.74104]
[1721008524609,1.05486439,3283.9,3283.5,2.74097]
[1721008524812,1.05486439,3283.8,3283.5,2.74097]
[1721008525011,1.05486439,3284.2,3283.5,2.74097]
[1721008525217,1.66789883,3284.2,3283.5,2.74097]
[1721008525426,1.05486439,3284.1,3283.5,2.74097]
[1721008525785,0.07613171,3284.0,3283.3,2.74112]
[1721008525985,1.05486439,3283.9,3283.3,2.74112]
[1721008526188,1.05486439,3284.1,3283.3,2.74112]
[1721008526388,0.17440305,3284.0,3283.3,2.74112]
[1721008526623,4.40836409,3284.2,3283.3,2.74112]
[1721008526916,1.05493965,3284.1,3283.3,2.74112]
[1721008527992,2.81672647,3284.0,3283.1,2.74126]
[1721008528818,2.74059,3284.0,3283.1,2.74126]
[1721008529018,0.548113,3283.9,3283.1,2.74126]
[1721008529326,1.05496459,3283.8,3283.2,2.74122]
[1721008530622,1.05496459,3283.8,3283.0,2.74133]
[1721008530823,1.05496459,3283.8,3283.1,5.7413]
[1721008530995,0.548113,3283.9,3283.1,5.7413]
[1721008531186,1.05496449,3283.8,3283.1,5.7413]
[1721008531388,1.05496449,3283.7,3283.1,5.7413]
[1721008531625,1.05496449,3283.6,3283.1,5.7413]
[1721008531805,1.05496449,3283.8,3283.1,5.7413]
[1721008532000,1.05494842,3283.7,3283.1,5.7413]
[1721008532202,0.548113,3283.9,3283.1,5.7413]
[1721008532515,0.3288703,3283.8,3283.1,5.7413]
[1721008532710,1.05496286,3283.7,3283.1,5.7413]
[1721008532913,1.05496286,3283.6,3283.1,5.7413]
[1721008533114,1.05496286,3283.7,3283.1,5.7413]
[1721008533316,1.05495122,3283.6,3283.1,5.7413]
[1721008533516,1.05495122,3283.5,3283.1,5.7413]
[1721008533699,1.05495122,3283.7,3283.1,5.7413]
[1721008533900,1.05496702,3283.6,3283.1,5.7413]
[1721008534227,1.05496702,3283.5,3283.1,5.7413]
[1721008534406,1.05496702,3283.6,3283.1,5.7413]
[1721008534605,1.05497296,3283.5,3283.1,5.7413]
[1721008534825,2.285,3283.7,3283.1,5.7413]
[1721008535130,0.3339973,3283.5,3282.9,7.43]
[1721008535332,1.13112252,3283.4,3282.9,7.43]
[1721008535494,1.05497315,3283.3,3282.9,7.43]
[1721008536125,0.07614937,3283.4,3282.9,7.43]
[1721008536294,1.05511357,3283.3,3282.9,7.43]
[1721008537314,0.07614938,3283.2,3282.4,2.74188]
[1721008537531,3.40001357,3283.1,3282.4,2.74188]
[1721008537739,1.05511357,3283.0,3282.4,2.74188]
[1721008538245,1.13126919,3283.0,3282.4,2.74188]
[1721008538433,1.05511357,3282.9,3282.4,2.74188]
[1721008538831,1.05511357,3283.0,3282.4,2.74188]
[1721008539043,1.05511357,3282.9,3282.4,2.74188]
[1721008539528,0.07615561,3283.0,3282.4,2.74188]
[1721008539844,1.05522255,3282.9,3282.4,2.74188]
[1721008540045,0.3872383,3283.2,3282.5,2.74174]
[1721008540243,1.05518574,3283.1,3282.6,2.74171]
[1721008540452,1.05518574,3283.0,3282.6,2.74171]
[1721008540625,1.05518574,3283.4,3282.6,2.74171]
[1721008540947,0.6523853,3283.3,3282.6,2.74171]
[1721008541245,1.05518574,3283.2,3282.6,2.74171]
[1721008543039,1.05517704,3283.1,3282.6,2.74171]
[1721008543261,0.6523853,3283.3,3282.5,2.74174]
[1721008543262,1.05517704,3283.0,3282.5,2.74174]
[1721008543556,0.6523853,3283.3,3282.5,2.74174]
[1721008543557,1.05522238,3282.9,3282.5,2.74174]
[1721008543719,0.6523853,3283.3,3282.5,2.74174]
[1721008543914,1.40218819,3283.2,3282.5,2.74174]
[1721008544162,1.05522811,3283.1,3282.5,2.74174]
[1721008544451,1.05522811,3283.0,3282.5,2.74174]
[1721008544631,1.05522811,3282.9,3282.5,2.74174]
[1721008544829,0.34696008,3283.2,3282.5,2.74174]
[1721008545038,1.05521902,3283.1,3282.5,2.74174]
[1721008545353,1.05521902,3283.0,3282.5,2.74174]
[1721008546367,1.13138067,3282.9,3282.5,2.74174]
[1721008546668,0.07615542,3282.9,3282.5,2.74174]
[1721008547154,1.05522977,3282.8,3282.3,2.74196]
[1721008547319,2.3458,3282.9,3282.4,3.0]
[1721008547643,1.13139566,3282.8,3282.4,3.0]
[1721008548189,1.05528874,3282.7,3282.1,10.17211]
[1721008548485,1.13145499,3282.6,3282.1,7.43]
[1721008548690,0.34771957,3282.8,3282.1,10.17213]
[1721008548691,1.05528874,3282.5,3282.1,10.17213]
[1721008548848,1.5987887,3282.7,3281.9,2.74229]
[1721008549181,1.05528874,3282.6,3282.0,2.74222]
[1721008549591,0.54349996,3282.7,3282.0,2.74222]
[1721008549592,1.05537394,3282.5,3282.0,2.74222]
[1721008550079,0.54349996,3282.7,3282.0,2.74222]
[1721008550278,1.13153476,3282.6,3282.0,2.74222]
[1721008550481,1.22287202,3282.5,3281.8,2.74239]
[1721008550778,1.13153994,3282.4,3281.8,2.74239]
[1721008550940,1.05536855,3282.3,3281.8,2.74239]
[1721008552088,1.05542063,3282.2,3281.8,2.74239]
[1721008552386,0.07617139,3282.4,3281.8,2.74239]
[1721008552555,1.05543643,3282.3,3281.8,2.74239]
[1721008552769,1.05544725,3282.2,3281.9,2.74231]
[1721008552971,0.07616942,3282.6,3281.9,2.74231]
[1721008553292,1.05543609,3282.5,3281.9,2.74231]
[1721008553497,1.05543609,3282.4,3281.6,15.58553]
[1721008553712,3.79731609,3282.5,3281.7,3.0]
[1721008554016,2.2825,3282.3,3281.6,10.17253]
[1721008554168,1.05543609,3282.2,3281.6,7.43]
[1721008555995,2.2825,3282.3,3281.6,7.43]
[1721008556190,2.2825,3282.3,3281.5,2.74264]
[1721008556191,1.05553888,3282.2,3281.5,2.74264]
[1721008556407,1.05553888,3282.1,3281.5,2.74264]
[1721008556586,1.05553888,3282.0,3281.5,2.74264]
[1721008556786,2.2825,3282.3,3281.5,2.74264]
[1721008557113,1.05553941,3282.2,3281.5,2.74264]
[1721008557321,1.05553941,3282.1,3281.5,2.74264]
[1721008557499,1.05553941,3282.2,3281.5,2.74264]
[1721008559527,1.05554418,3282.1,3281.5,2.74264]
[1721008559699,2.81068111,3282.3,3281.5,2.74264]
[1721008559888,1.05553856,3282.2,3281.5,2.74264]
[1721008560110,1.05553856,3282.1,3281.5,2.74264]
[1721008560307,2.81068111,3282.3,3281.6,2.74256]
[1721008560515,1.65247835,3282.2,3281.6,2.74256]
[1721008560710,1.05553804,3282.1,3281.6,2.74256]
[1721008560931,2.4583,3282.6,3281.6,2.74256]
[1721008561096,1.05546669,3282.5,3281.8,2.74232]
[1721008561295,5.1998,3282.9,3281.8,3.540348]
[1721008561296,1.05546669,3282.4,3281.8,3.540348]
[1721008561496,2.74166,3282.7,3281.8,3.540348]
[1721008561720,1.05536249,3282.6,3281.8,2.74232]
[1721008562034,5.47395,3282.9,3282.0,2.74222]
[1721008562035,1.05537624,3282.5,3282.0,2.74222]
[1721008562333,2.74163,3282.8,3282.1,1.072]
[1721008562504,1.05537545,3282.7,3281.9,2.74227]
[1721008562711,0.37970055,3282.6,3281.7,3.81443]
[1721008563021,1.05537545,3282.5,3281.7,3.81443]
[1721008563197,1.05537545,3282.5,3281.8,2.74237]
[1721008564619,1.05545262,3282.4,3281.8,2.74237]
[1721008564817,1.05545262,3282.3,3281.8,2.74237]
[1721008564998,1.05545262,3282.5,3281.9,2.74231]
[1721008565200,1.05543448,3282.4,3281.9,2.74231]
[1721008565409,1.05543448,3282.3,3281.9,2.74231]
[1721008565609,1.05543448,3282.5,3281.9,2.74231]
[1721008565930,1.05543448,3282.4,3281.9,2.74231]
[1721008566094,1.05543448,3282.3,3281.9,3.290778]
[1721008566296,0.3191345,3282.6,3282.0,2.2571]
[1721008566501,1.05535588,3282.5,3282.0,2.2571]
[1721008566701,1.05535588,3282.4,3282.0,2.2571]
[1721008566917,1.05535588,3282.3,3282.0,2.2571]
[1721008567120,0.3191345,3282.6,3282.0,4.99932]
[1721008567320,1.05533652,3282.5,3282.1,2.74212]
[1721008567520,1.05533652,3282.4,3282.1,2.74212]
[1721008567722,1.05533652,3282.5,3282.1,2.74212]
[1721008568510,1.05532972,3282.4,3282.1,2.74212]
[1721008568715,1.05532972,3282.3,3282.1,2.74212]
[1721008568917,1.05532972,3282.5,3282.1,2.74212]
[1721008569121,1.05531352,3282.4,3282.1,2.74212]
[1721008569328,1.05531352,3282.3,3282.1,2.74212]
[1721008569533,1.05531352,3282.5,3282.1,2.74212]
[1721008569840,1.05531352,3282.5,3281.7,2.74243]
[1721008570038,1.05531352,3282.5,3281.8,2.74231]
[1721008570251,1.05531352,3282.5,3282.0,2.74216]
[1721008571235,1.05531352,3282.5,3281.8,2.74231]
[1721008571422,1.05531352,3282.5,3281.8,5.48464]
[1721008571627,1.05531352,3282.5,3281.9,2.74227]
[1721008571925,1.05542838,3282.4,3281.9,2.74227]
[1721008572128,1.05542838,3282.3,3282.0,2.74222]
[1721008572331,1.05542838,3282.2,3282.0,2.74222]
[1721008572534,1.05542838,3282.1,3282.0,2.74222]
[1721008572909,1.05538071,3282.1,3282.0,2.74222]
[1721008573107,1.05538849,3282.1,3282.0,2.74222]
[1721008575226,0.47820335,3282.4,3282.0,2.74222]
[1721008575430,1.05540591,3282.3,3282.0,2.74222]
[1721008575635,0.47820335,3282.4,3282.0,2.74222]
[1721008575636,1.05540591,3282.2,3282.0,2.74222]
[1721008575955,1.05540591,3282.1,3282.0,2.74222]
[1721008578629,1.05541691,3282.1,3282.0,2.74222]
[1721008579038,1.0554243,3282.1,3282.0,2.74222]
[1721008580556,1.0554243,3282.1,3281.6,2.4427]
[1721008580757,1.0554243,3282.0,3281.5,10.17257]
[1721008580964,1.1316011,3282.2,3281.5,10.17257]
[1721008581170,1.0554243,3282.1,3281.5,10.17257]
[1721008581473,1.13176646,3282.0,3281.5,7.43]
[1721008581622,1.05558657,3281.9,3281.5,7.43]
[1721008581818,0.07617989,3282.0,3281.5,7.43]
[1721008582157,1.05559018,3281.9,3281.5,7.43]
[1721008582316,0.07618104,3281.8,3281.5,7.43]
[1721008582514,1.13177122,3281.8,3281.3,5.219]
[1721008582744,1.05559018,3281.7,3281.3,5.219]
[1721008582961,1.05559018,3281.6,3281.1,2.74296]
[1721008583127,1.05559018,3281.5,3281.1,2.74296]
[1721008583319,2.4296,3281.8,3281.1,2.74296]
[1721008583548,1.41172781,3281.7,3281.1,2.74296]
[1721008583759,1.05559018,3281.6,3281.1,2.74296]
[1721008584021,1.05559018,3281.6,3281.5,2.74264]
[1721008584241,0.31910726,3282.2,3281.6,2.74255]
[1721008584242,1.05559018,3282.1,3281.6,2.74255]
[1721008584555,1.05550157,3282.0,3281.6,2.74255]
[1721008584856,1.05550157,3281.9,3281.7,0.274255]
[1721008585235,1.05545808,3281.8,3281.7,0.274255]
[1721008585421,1.05545808,3281.8,3281.6,2.74255]
[1721008585620,1.05545808,3281.7,3281.6,2.74255]
[1721008585834,1.05545808,3282.1,3281.6,2.74255]
[1721008587719,1.05545808,3282.1,3281.8,2.74232]
[1721008587953,3.21979684,3282.8,3282.0,2.74222]
[1721008588262,0.31912153,3282.6,3282.0,2.74222]
[1721008588623,1.05537987,3282.5,3282.0,2.74222]
[1721008588923,1.05537987,3282.4,3282.0,2.74222]
[1721008589146,1.05537987,3282.3,3282.0,2.74222]
[1721008589355,1.05537987,3282.2,3282.0,2.74222]
[1721008589655,1.05537987,3282.1,3282.0,2.74222]
[1721008591341,1.05537016,3282.1,3282.0,2.74222]
[1721008591634,1.05537016,3282.1,3282.0,3.290674]
[1721008591834,1.05536182,3282.1,3282.0,3.290674]
[1721008593835,1.05536182,3282.1,3282.0,2.74222]
[1721008594466,1.05536182,3282.1,3282.0,3.81422]
[1721008594690,1.05536182,3282.1,3282.0,16.39288]
[1721008594984,1.9063501,3283.5,3282.9,2.74146]
[1721008595264,1.05506379,3283.4,3283.0,1.072]
[1721008595484,1.05506379,3283.3,3283.2,1.072]
[1721008595826,1.05506379,3283.3,3283.2,3.81322]
[1721008596065,1.05506379,3283.3,3283.2,2.74122]
[1721008596366,1.05506379,3283.3,3283.0,2.74135]
[1721008596662,1.05506379,3283.2,3283.0,2.74135]
[1721008596863,1.05506379,3283.4,3283.0,2.74135]
[1721008597907,1.05506379,3283.4,3283.1,2.74125]
[1721008598608,0.47812958,3283.5,3283.1,2.74125]
[1721008598760,1.05508204,3283.4,3283.1,3.289521]
[1721008598959,1.05508204,3283.3,3283.1,3.289521]
[1721008599175,0.47812958,3283.5,3283.1,3.289521]
[1721008599475,1.05506666,3283.4,3283.1,2.74125]
[1721008599794,0.47812958,3283.5,3283.1,2.74125]
[1721008600007,1.05506843,3283.4,3283.1,2.74125]
[1721008600296,0.47812958,3283.5,3283.1,2.74125]
[1721008600509,1.0550683,3283.4,3283.1,2.74125]
[1721008600803,0.47812958,3283.5,3283.1,2.74125]
[1721008600974,1.05505936,3283.4,3283.1,3.015375]
[1721008601179,0.47812958,3283.5,3283.3,2.74114]
[1721008604622,0.31911784,3283.6,3283.3,2.74114]
[1721008616401,1.05503363,3283.5,3283.3,2.74114]
[1721008616607,0.31911784,3283.6,3283.3,2.74114]
[1721008616808,1.0550323,3283.5,3283.3,2.74114]
[1721008617008,0.31911784,3283.6,3283.3,2.74114]
[1721008617243,1.05503266,3283.5,3283.3,2.74114]
[1721008617448,0.31911784,3283.6,3283.3,2.74114]
[1721008617650,1.05503252,3283.5,3283.1,2.74125]
[1721008617943,1.05503252,3283.4,3283.1,2.74125]
[1721008618139,0.31911784,3283.6,3283.1,2.74125]
[1721008618140,1.05503252,3283.5,3283.1,2.74125]
[1721008618547,1.05509264,3283.4,3282.9,5.01054]
[1721008618859,1.05509264,3283.3,3282.9,5.01054]
[1721008619024,1.05509264,3283.5,3282.9,5.01054]
[1721008619220,1.05509458,3283.4,3282.9,5.01054]
[1721008619421,1.05509458,3283.3,3282.9,5.01054]
[1721008619620,1.05509458,3283.5,3282.9,5.01054]
[1721008619814,1.47421115,3283.5,3282.9,5.01054]
[1721008620015,1.05509458,3283.4,3282.9,5.01054]
[1721008620323,1.05509458,3283.3,3282.9,5.01054]
[1721008620532,1.05509458,3283.4,3282.9,5.01054]
[1721008620724,1.05509458,3283.3,3282.9,5.01054]
[1721008621042,0.07614618,3283.4,3282.9,5.01054]
[1721008621215,0.07614618,3283.4,3282.9,2.74144]
[1721008621216,1.05509359,3283.2,3282.9,2.74144]
[1721008621415,0.39039424,3283.4,3282.9,2.74144]
[1721008621617,1.05509488,3283.3,3282.9,2.74144]
[1721008622424,1.05509488,3283.3,3282.9,3.81244]
[1721008624309,1.05509592,3283.2,3282.9,1.071]
[1721008624546,1.05509592,3283.1,3282.7,2.74161]
[1721008624722,0.26261112,3283.3,3282.7,2.74161]
[1721008624723,1.05509592,3283.2,3282.7,2.74161]
[1721008625059,1.05509592,3283.1,3282.6,2.452]
[1721008625235,1.05509592,3283.2,3282.6,2.452]
[1721008625545,1.05509592,3283.2,3282.6,5.19372]
[1721008626426,1.05509592,3283.2,3282.7,1.071]
[1721008626622,1.05509592,3283.1,3282.7,1.071]
[1721008626828,1.05509592,3283.3,3282.7,1.071]
[1721008627645,1.0551587,3283.2,3282.7,1.071]
[1721008627832,1.0551587,3283.1,3282.7,1.071]
[1721008628033,1.0551587,3283.0,3282.7,1.071]
[1721008628228,1.0551587,3282.9,3282.7,1.071]
[1721008628434,1.0551587,3282.8,3282.7,1.071]
[1721008631159,1.05516758,3283.4,3282.7,1.071]
[1721008631354,0.38722987,3283.3,3282.7,1.071]
[1721008631514,1.05516618,3283.4,3282.7,1.071]
[1721008632116,1.05516618,3283.4,3282.7,3.81263]
[1721008633731,1.05516596,3283.3,3282.7,3.81263]
[1721008633931,1.05516596,3283.2,3282.7,3.81263]
[1721008634116,1.05516596,3283.4,3282.7,3.81263]
[1721008634322,1.05516612,3283.3,3282.7,3.81263]
[1721008634547,1.05516612,3283.2,3282.7,3.81263]
[1721008634735,1.05516612,3283.1,3282.7,3.81263]
[1721008634937,1.05516612,3283.0,3282.7,3.81263]
[1721008635161,1.05516612,3282.9,3282.7,3.81263]
[1721008635379,1.05516612,3282.8,3282.7,3.81263]
[1721008637634,2.81713181,3283.5,3282.7,3.81263]
[1721008637909,1.79219613,3283.4,3282.7,3.81263]
[1721008638063,1.05514911,3283.3,3282.7,3.81263]
[1721008638427,1.05514911,3283.2,3282.7,3.81263]
[1721008638627,1.05514911,3283.3,3282.7,3.81263]
[1721008638853,1.05514911,3283.2,3282.7,2.74163]
[1721008639033,1.05514911,3283.1,3282.7,2.74163]
[1721008639250,1.05514911,3283.0,3282.7,2.74163]
[1721008639449,1.05514911,3283.3,3282.8,2.74155]
[1721008639649,1.05514911,3283.4,3282.8,2.74155]
[1721008639855,1.05514911,3283.3,3282.9,3.81243]
[1721008640066,1.05514911,3283.2,3283.1,6.22123]
[1721008640933,0.31911784,3283.6,3283.2,2.74121]
[1721008641269,2.4144,3283.4,3282.8,5.079]
[1721008641440,1.13115948,3283.3,3282.6,2.7417]
[1721008641672,1.05500743,3283.2,3282.7,2.74161]
[1721008641999,1.05500743,3283.1,3282.7,2.74161]
[1721008642195,1.05500743,3283.3,3282.7,2.74161]
[1721008642372,1.05500743,3283.3,3282.5,2.74175]
[1721008642373,2.08029663,3283.2,3282.5,2.74175]
[1721008642573,1.05500743,3283.1,3282.5,2.74175]
[1721008642763,1.071,3282.8,3281.9,2.4511]
[1721008642957,1.071,3282.4,3281.7,7.43]
[1721008643189,1.13118291,3282.3,3281.7,7.43]
[1721008643496,1.13118301,3282.2,3281.7,7.43]
[1721008643691,1.05500743,3282.1,3281.7,7.43]
[1721008643872,1.05500743,3282.1,3281.5,2.74264]
[1721008644893,1.05500743,3282.1,3281.6,3.0]
[1721008645291,1.05500743,3282.1,3281.6,5.74255]
[1721008645657,1.05500743,3282.0,3281.6,5.74255]
[1721008645858,1.05500743,3282.3,3281.7,2.74247]
[1721008646059,1.05500743,3282.2,3281.7,2.74247]
[1721008646255,1.05500743,3282.5,3281.7,3.316717]
[1721008646456,1.05500743,3282.5,3281.8,2.4793]
[1721008646699,1.05500743,3282.4,3281.9,2.74224]
[1721008646884,1.05500743,3282.7,3281.9,2.74224]
[1721008647087,1.05500743,3282.3,3281.9,2.74224]
[1721008647283,2.74161,3282.8,3281.9,2.74224]
[1721008647489,1.33724732,3282.7,3281.9,2.74224]
[1721008647686,1.0554695,3282.6,3281.9,2.74224]
[1721008647885,1.0554695,3282.5,3281.9,2.74224]
[1721008648073,1.0554695,3282.4,3281.8,2.4793]
[1721008648275,1.0554695,3282.6,3281.8,2.4793]
[1721008648476,2.4907,3282.4,3281.7,2.74242]
[1721008648674,1.0554695,3282.3,3281.7,2.74242]
[1721008650514,2.4907,3282.4,3281.7,2.74242]
[1721008650812,1.05547618,3282.3,3281.7,2.74242]
[1721008651112,1.05547811,3282.2,3281.7,2.74242]
[1721008651299,1.05547811,3282.1,3281.7,2.74242]
[1721008651497,3.05474587,3282.4,3281.7,2.74242]
[1721008651702,1.05547774,3282.3,3281.7,2.74242]
[1721008651901,1.05547774,3282.2,3281.7,2.74242]
[1721008652196,1.05547774,3282.3,3281.7,2.74242]
[1721008652396,1.05547849,3282.2,3281.7,2.74242]
[1721008652604,3.05474587,3282.4,3281.7,2.74242]
[1721008652805,1.75210505,3282.3,3281.7,2.74242]
[1721008653115,1.13165458,3282.2,3281.7,2.74242]
[1721008653289,1.05547869,3282.1,3281.6,3.0]
[1721008653493,1.05547869,3282.2,3281.5,2.74262]
[1721008653693,0.16759292,3282.1,3281.5,2.74262]
[1721008654104,1.05554729,3282.0,3281.5,2.74262]
[1721008654303,0.16759292,3282.1,3281.5,2.74262]
[1721008654481,1.05554713,3282.0,3281.5,2.74262]
[1721008654681,1.05554713,3281.9,3281.5,2.74262]
[1721008654917,0.62045046,3282.3,3281.5,2.74262]
[1721008655135,1.64085004,3282.2,3281.5,2.74262]
[1721008655417,1.05554399,3282.1,3281.5,2.74262]
[1721008655624,1.05554399,3282.0,3281.5,2.74262]
[1721008655784,0.58530605,3282.2,3281.5,2.74262]
[1721008655983,1.05554424,3282.1,3281.5,2.74262]
[1721008656230,1.05554424,3282.0,3281.5,2.74262]
[1721008656394,0.58530605,3282.2,3281.5,2.74262]
[1721008656592,1.38827305,3282.1,3281.5,2.74262]
[1721008656810,1.05554445,3282.0,3281.5,2.74262]
[1721008657011,0.3327286,3282.1,3281.5,2.74262]
[1721008657411,1.05554272,3282.0,3281.5,2.74262]
[1721008657611,0.3327286,3282.1,3281.5,2.74262]
[1721008657821,1.05554265,3282.0,3281.5,2.74262]
[1721008658010,0.3327286,3282.1,3281.5,2.74262]
[1721008658209,1.0555433,3282.0,3281.5,2.74262]
[1721008658406,0.3327286,3282.1,3281.6,2.74256]
[1721008658605,1.05554411,3282.0,3281.6,2.74256]
[1721008658823,5.23259,3282.4,3281.6,2.74256]
[1721008659027,1.61959188,3282.3,3281.6,2.74256]
[1721008659350,1.05554401,3282.2,3281.6,2.74256]
[1721008659502,1.05554401,3282.1,3281.6,2.74256]
[1721008659701,1.05554401,3282.0,3281.8,2.74239]
[1721008659942,2.4907,3282.4,3281.8,2.74239]
[1721008660136,1.05554009,3282.3,3281.8,2.74239]
[1721008660569,2.2983,3282.7,3281.8,2.74239]
[1721008660870,1.05553968,3282.5,3281.9,2.3391]
[1721008661153,1.05553968,3282.4,3282.1,2.74213]
[1721008661360,1.05553968,3282.3,3282.1,2.74213]
[1721008661498,2.74149,3282.9,3282.1,2.74213]
[1721008661705,0.31913884,3282.5,3282.1,2.74213]